bitfinex/quotes_ETHUSD_20220119
["timestamp","ask_amount","ask_price","bid_price","bid_amount"]
[1642580414475,1.62972,3069.0,3068.5,0.00511582]
[1642580415477,0.8149,3068.9,3068.5,0.00511582]
[1642580415680,0.81486,3068.7,3068.5,0.00511582]
[1642580417121,0.81486,3068.7,3068.6,2.77090959]
[1642580417526,0.52246,3068.7,3068.6,2.77545698]
[1642580420266,2.45262,3068.7,3068.6,2.77545698]
[1642580420470,8.4855128,3068.7,3068.6,2.77545698]
[1642580420672,8.4855128,3068.7,3067.6,1.58460183]
[1642580420673,0.81519,3068.5,3067.6,1.58460183]
[1642580420871,0.81519,3068.5,3067.4,2.75948758]
[1642580420872,1.63045,3068.3,3067.5,1.58460183]
[1642580421071,1.66439683,3068.3,3067.7,0.00511581]
[1642580421274,1.83613108,3067.9,3067.7,0.00511581]
[1642580421871,1.83613108,3067.9,3067.5,0.00625266]
[1642580422072,0.81526,3067.8,3067.5,0.00625266]
[1642580422675,0.51966,3067.8,3067.5,0.00625266]
[1642580424033,2.15026,3067.8,3067.5,0.00625266]
[1642580424214,0.8152533,3067.7,3067.5,0.00625266]
[1642580424415,0.81528,3067.6,3067.5,0.00625266]
[1642580425722,1.6306,3067.8,3067.5,0.00625266]
[1642580425924,0.81534,3067.8,3067.5,0.00625266]
[1642580426121,0.81534,3067.8,3067.5,1.59085449]
[1642580426523,0.81534,3067.8,3067.6,0.00568424]
[1642580427087,2.94743172,3067.8,3067.6,0.00568424]
[1642580427479,0.81534,3067.8,3067.5,0.00625266]
[1642580427680,0.52284,3067.8,3067.5,0.00625266]
[1642580427883,0.8152209,3067.7,3067.5,0.00625266]
[1642580428178,0.52284,3067.8,3067.5,0.00625266]
[1642580429381,0.8152164,3067.7,3067.5,0.00625266]
[1642580429782,1.33806,3067.8,3067.5,0.00625266]
[1642580430181,0.3,3067.7,3067.5,0.00625266]
[1642580430827,2.7459172,3067.7,3067.5,0.00625266]
[1642580431032,2.7459172,3067.7,3066.8,1.58460183]
[1642580431033,0.8155,3067.4,3066.8,1.58460183]
[1642580431330,2.03493011,3066.7,3066.3,1.58460183]
[1642580431528,2.85052591,3066.7,3066.3,1.58460183]
[1642580431728,2.85052591,3066.7,3066.4,0.00625266]
[1642580431729,4.48172591,3066.7,3066.4,0.00625266]
[1642580431928,0.3,3066.6,3066.4,0.00625266]
[1642580432340,3.5624,3066.6,3066.2,0.00738951]
[1642580432528,2.7468,3066.6,3066.2,0.00738951]
[1642580432727,2.4523,3066.6,3066.1,0.00795793]
[1642580433131,1.6367,3066.6,3066.1,0.00795793]
[1642580433533,1.63128,3066.4,3066.1,0.00795793]
[1642580433730,1.11566,3066.4,3066.0,0.00852635]
[1642580433930,1.63156,3066.2,3065.7,0.01023162]
[1642580434128,2.4473073,3066.1,3065.7,0.01023162]
[1642580434330,0.3,3066.0,3065.7,0.01023162]
[1642580434583,3.04732,3066.0,3065.7,0.01023162]
[1642580434770,4.07804528,3066.0,3065.7,0.01023162]
[1642580435171,0.471,3065.9,3065.7,0.01023162]
[1642580435571,6.5,3065.8,3064.9,1.58460183]
[1642580435777,0.8159463,3065.1,3064.9,1.58460183]
[1642580435975,2.79590702,3065.2,3065.0,0.00397897]
[1642580436374,1.11595,3065.2,3064.9,0.00454739]
[1642580437175,2.7478425,3065.2,3064.9,0.00454739]
[1642580437576,1.9319,3065.2,3064.9,0.00454739]
[1642580437777,1.6423,3065.2,3064.9,0.00454739]
[1642580439422,2.47876365,3065.3,3065.2,3.28459999]
[1642580439825,2.4478453,3065.3,3065.2,3.28744211]
[1642580440025,2.48515118,3065.3,3065.2,3.28744211]
[1642580440225,2.48264471,3065.3,3065.2,3.28744211]
[1642580440425,2.4478453,3065.3,3065.2,3.28744211]
[1642580440626,2.486021,3065.3,3065.2,6.06074831]
[1642580440825,2.7478453,3065.3,3065.2,6.06074831]
[1642580441032,1.1159453,3065.3,3065.2,6.06074831]
[1642580441425,1.4159453,3065.3,3065.2,6.06074831]
[1642580442767,1.1159453,3065.3,3065.2,6.06074831]
[1642580442972,1.63176,3065.7,3065.2,6.06074831]
[1642580442973,0.0317295,3065.9,3065.2,6.06074831]
[1642580443176,0.81572,3066.0,3065.3,4.70372911]
[1642580443376,0.00113684,3065.9,3065.4,2.7733062]
[1642580443576,0.00113684,3065.9,3065.4,2.77501147]
[1642580443773,0.30113684,3065.9,3065.5,2.77444305]
[1642580443974,0.00113684,3065.9,3065.6,2.7733062]
[1642580444174,0.81575,3065.8,3065.7,2.7733062]
[1642580444575,1.11575,3065.8,3065.5,0.00113685]
[1642580444973,0.81598,3065.7,3065.5,2.7733062]
[1642580445176,0.81598,3065.7,3065.6,2.7733062]
[1642580445177,5.71598,3065.7,3065.6,2.7733062]
[1642580445479,6.01598,3065.7,3065.5,0.00113685]
[1642580445678,1.0,3065.6,3065.5,0.00113685]
[1642580445920,1.0,3065.6,3065.2,3.28459999]
[1642580445921,2.11585,3065.6,3065.3,0.0022737]
[1642580446128,1.64375585,3065.4,3065.3,0.0022737]
[1642580446320,0.85511795,3065.6,3065.3,0.0022737]
[1642580446321,0.3,3065.5,3065.3,0.0022737]
[1642580446519,1.6,3065.6,3065.3,0.0022737]
[1642580446719,0.3,3065.6,3065.3,0.0022737]
[1642580446920,0.3,3065.7,3065.3,0.0022737]
[1642580447122,1.6,3065.8,3065.3,0.0022737]
[1642580447320,2.41577,3065.8,3065.3,0.0022737]
[1642580447522,3.26209496,3065.8,3065.3,0.0022737]
[1642580448121,2.07543592,3065.7,3065.3,0.0022737]
[1642580448524,0.00113684,3065.9,3065.3,1.98277076]
[1642580448729,0.00113684,3065.9,3065.4,1.58460183]
[1642580448924,0.00113684,3065.9,3065.5,1.27825954]
[1642580449124,0.00113684,3065.9,3065.5,1.58573868]
[1642580449324,3.1173,3066.3,3065.5,1.58573868]
[1642580449325,3.1173,3066.3,3066.0,0.00227368]
[1642580449767,0.00170527,3066.2,3066.0,0.00227368]
[1642580450166,0.00113685,3066.1,3066.0,0.00227368]
[1642580450970,7.38557931,3066.4,3066.3,2.31999898]
[1642580451170,3.73347931,3066.4,3066.3,2.31999898]
[1642580451375,52.51433283,3066.4,3066.3,2.31999898]
[1642580452370,53.51433283,3066.4,3066.3,2.31999898]
[1642580452572,56.77717853,3066.4,3066.3,2.31999898]
[1642580452770,58.40860853,3066.4,3066.3,2.31999898]
[1642580452971,57.10860853,3066.4,3066.3,2.31999898]
[1642580453171,57.11630853,3066.4,3066.3,2.31999898]
[1642580453420,58.15175768,3066.4,3066.3,2.31999898]
[1642580454024,58.15175768,3066.4,3066.0,0.00227368]
[1642580454025,0.00566263,3066.2,3066.0,0.00227368]
[1642580454322,8.0318328,3066.1,3066.0,0.00227368]
[1642580454523,8.0318328,3066.1,3065.6,0.00170527]
[1642580454524,7.3,3066.0,3065.6,0.00170527]
[1642580454721,7.6,3066.0,3065.6,0.00170527]
[1642580454921,2.11307308,3065.8,3065.3,0.00454739]
[1642580455120,0.81587,3065.7,3065.3,0.00454739]
[1642580455325,1.63173,3065.7,3065.3,0.00454739]
[1642580455523,2.63173,3065.7,3065.3,0.00454739]
[1642580456723,2.447849,3065.6,3065.3,0.00454739]
[1642580456923,0.81593,3065.5,3065.3,0.00454739]
[1642580457373,1.81593,3065.5,3065.3,0.00454739]
[1642580458171,1.52633,3065.5,3065.4,0.0203]
[1642580458572,1.52633,3065.5,3065.4,0.02427896]
[1642580459378,8.93217,3065.3,3064.7,1.58460183]
[1642580459577,0.81618,3065.1,3064.5,1.58460183]
[1642580459775,0.81618,3065.1,3064.8,0.00341054]
[1642580459776,0.771,3065.0,3064.8,0.00341054]
[1642580460176,0.771,3065.0,3064.4,0.00568424]
[1642580460177,1.78304088,3064.6,3064.4,0.00568424]
[1642580460377,0.471,3065.0,3064.6,3.56608176]
[1642580460574,0.471,3065.0,3064.6,3.58437576]
[1642580460575,1.67036558,3064.7,3064.6,3.58437576]
[1642580460823,0.85413558,3064.7,3064.6,3.58437576]
[1642580461028,0.81615,3064.7,3064.6,3.58437576]
[1642580461928,1.66463055,3064.8,3064.6,3.58437576]
[1642580462126,1.0,3064.8,3064.6,3.58437576]
[1642580462327,3.2987891,3064.9,3064.7,6.25397897]
[1642580462328,0.8503991,3064.9,3064.7,6.25397897]
[1642580462827,0.8503991,3064.9,3064.8,0.00341054]
[1642580463229,0.5228671,3064.9,3064.8,0.00341054]
[1642580463627,0.5228671,3064.9,3064.8,1.58801237]
[1642580463826,2.66234889,3065.1,3064.8,1.58801237]
[1642580463827,1.66228229,3065.1,3064.8,1.58801237]
[1642580464029,1.631875,3065.4,3064.9,1.58460183]
[1642580464030,1.0,3065.3,3064.9,1.58460183]
[1642580464237,1.0,3065.3,3064.9,1.58744395]
[1642580464428,1.84844018,3065.4,3065.0,0.0022737]
[1642580464671,0.81597,3065.2,3065.0,0.0022737]
[1642580464869,0.81597,3065.2,3064.8,0.00341054]
[1642580465070,1.81597,3065.2,3064.8,0.00341054]
[1642580465370,1.0,3065.2,3064.8,0.00341054]
[1642580465769,2.85590443,3065.0,3064.8,0.00341054]
[1642580465977,0.0498445,3065.0,3064.8,0.00341054]
[1642580466273,1.0,3064.9,3064.8,0.00341054]
[1642580466473,1.0498445,3065.0,3064.8,0.00341054]
[1642580467073,1.8985329,3065.0,3064.8,0.00341054]
[1642580467274,1.83378434,3064.9,3064.8,0.00341054]
[1642580467876,8.1127563,3064.9,3064.8,0.00341054]
[1642580468076,6.15,3064.8,3064.6,3.58437576]
[1642580468334,19.936255,3064.7,3064.6,0.0164646]
[1642580468532,5.74907,3064.5,3064.1,0.018294]
[1642580468730,1.67259708,3064.5,3064.1,0.018294]
[1642580468930,1.81636,3064.4,3064.1,0.018294]
[1642580469130,1.14806534,3064.4,3064.1,0.018294]
[1642580469331,3.78076534,3064.4,3064.1,0.018294]
[1642580470332,1.6324571,3064.3,3064.1,0.018294]
[1642580470532,2.66462945,3064.3,3064.1,0.018294]
[1642580471737,0.81621,3064.2,3064.1,0.018294]
[1642580471937,2.66462945,3064.3,3064.2,1.63242]
[1642580472176,2.60462945,3064.3,3064.2,1.63242]
[1642580472375,1.63285,3064.2,3063.5,2.48618887]
[1642580472576,2.63285,3064.2,3064.1,0.0073176]
[1642580472771,5.35,3064.1,3063.5,2.48618887]
[1642580472970,5.35,3064.1,3063.4,0.00397896]
[1642580472971,1.6328151,3064.0,3063.4,2.49016783]
[1642580473172,2.66368614,3064.0,3063.4,2.49016783]
[1642580473372,2.36868614,3064.0,3063.5,0.00341054]
[1642580473572,3.00150614,3064.0,3063.5,2.48959941]
[1642580473974,0.81642,3063.8,3063.6,0.00284212]
[1642580474173,1.6328276,3063.8,3063.6,0.00284212]
[1642580474372,1.66612575,3063.8,3063.5,2.48959941]
[1642580474572,1.66612575,3063.8,3063.6,2.48618887]
[1642580474776,1.66612575,3063.8,3063.6,2.48903099]
[1642580474972,4.93175575,3063.8,3063.7,0.00227369]
[1642580475173,5.93175575,3063.8,3063.7,0.00227369]
[1642580475377,3.29892575,3063.8,3063.7,2.48846256]
[1642580475576,3.29892575,3063.8,3063.7,3.23396761]
[1642580475577,0.81642,3063.8,3063.7,3.23396761]
[1642580476025,0.81642,3063.8,3063.7,6.00851283]
[1642580476226,0.81642,3063.8,3063.7,0.00227369]
[1642580476827,1.63284,3064.0,3063.7,0.01208618]
[1642580476828,6e-05,3064.0,3063.7,0.01208618]
[1642580477025,6e-05,3064.0,3063.9,3.24716359]
[1642580477228,6e-05,3064.0,3063.8,2.77454522]
[1642580477229,6e-05,3064.0,3063.8,2.77625049]
[1642580477430,6e-05,3064.0,3063.9,0.00113684]
[1642580477626,6e-05,3064.0,3063.9,3.24829052]
[1642580478427,0.81618,3064.1,3063.9,2.77568206]
[1642580478628,0.81618,3064.1,3064.0,2.77454522]
[1642580478829,6.61618836,3064.1,3064.0,1.6235064]
[1642580479027,7.61618836,3064.1,3064.0,1.6235064]
[1642580479228,7.61618836,3064.1,3063.9,0.00113684]
[1642580479683,1.92302632,3063.9,3063.8,2.77496649]
[1642580479883,0.81646,3063.9,3063.8,2.77496649]
[1642580480085,0.81646,3063.9,3063.5,4.40165356]
[1642580480281,3.77257886,3064.0,3063.5,1.62668707]
[1642580480282,19.93638,3063.8,3063.5,1.62668707]
[1642580480484,19.93638,3063.8,3063.6,0.00170528]
[1642580480782,19.93638,3063.8,3063.5,0.0022737]
[1642580480984,22.09373999,3063.7,3063.5,0.0022737]
[1642580481186,3.30324899,3063.8,3063.4,1.62952919]
[1642580481384,0.84920305,3063.7,3063.4,1.62952919]
[1642580481584,0.84920305,3063.7,3063.5,1.62896077]
[1642580481787,0.03809806,3063.9,3063.6,1.62668707]
[1642580481985,4.6570016,3064.4,3063.8,1.6239952]
[1642580481986,4.8985316,3064.4,3063.8,1.6239952]
[1642580482187,1.63239,3064.1,3064.0,1.62212239]
[1642580482386,0.00113685,3064.1,3064.0,1.62212239]
[1642580482986,0.00113685,3064.1,3063.9,1.62212239]
[1642580483189,0.00113685,3064.1,3063.8,1.62212239]
[1642580483448,0.00113685,3064.1,3063.7,0.00113685]
[1642580483449,19.12113685,3064.1,3063.7,0.00113685]
[1642580483649,19.12243685,3064.1,3063.7,0.00113685]
[1642580483947,19.12243685,3064.1,3063.7,1.62212239]
[1642580484146,19.12243685,3064.1,3063.8,1.62212239]
[1642580484347,19.12243685,3064.1,3063.8,1.62382767]
[1642580484547,19.12243685,3064.1,3063.9,0.00113685]
[1642580484948,19.93876685,3064.1,3063.9,0.00113685]
[1642580485348,3.5651473,3064.1,3063.8,0.00170528]
[1642580485546,3.59867293,3064.1,3063.8,0.00170528]
[1642580486948,2.78244293,3064.1,3063.8,0.00170528]
[1642580487984,2.78244293,3064.1,3063.7,0.0022737]
[1642580488385,19.93623,3064.0,3063.7,0.0022737]
[1642580488583,1.3424942,3063.9,3063.7,0.0022737]
[1642580488984,1.37333043,3063.9,3063.6,0.00284213]
[1642580489283,1.37333043,3063.9,3063.5,0.00341055]
[1642580489485,0.81635,3063.8,3063.5,0.00341055]
[1642580489687,0.8164,3063.7,3063.4,0.00397897]
[1642580489985,2.4491159,3063.7,3063.4,0.00397897]
[1642580490185,2.48469467,3063.7,3063.4,0.00397897]
[1642580490492,0.81637,3063.6,3063.4,0.00397897]
[1642580490929,2.44924,3063.6,3063.3,0.0045474]
[1642580491129,0.8164194,3063.5,3063.3,0.0045474]
[1642580491330,0.85563384,3063.5,3063.3,0.0045474]
[1642580492529,0.81641,3063.4,3063.3,0.0045474]
[1642580493331,0.84800193,3063.5,3063.3,0.0045474]
[1642580493630,0.84800193,3063.5,3063.3,1.62666979]
[1642580493829,0.5175194,3063.5,3063.3,0.0045474]
[1642580494031,0.5175194,3063.5,3063.4,0.00397897]
[1642580494232,0.5175194,3063.5,3063.3,1.62666979]
[1642580494434,0.5175194,3063.5,3063.4,0.00397897]
[1642580494675,0.5175194,3063.5,3063.4,1.62610136]
[1642580494874,0.5175194,3063.5,3063.4,0.00397897]
[1642580495275,0.5175194,3063.5,3063.4,2.77471273]
[1642580495482,0.5175194,3063.5,3063.3,1.62666979]
[1642580495682,0.5175194,3063.5,3063.4,2.7786917]
[1642580495883,1.3338894,3063.5,3063.4,2.7786917]
[1642580496281,0.19020553,3063.6,3063.4,2.7786917]
[1642580496479,0.16001508,3063.6,3063.5,2.77471273]
[1642580496681,19.28001508,3063.6,3063.5,2.77812328]
[1642580496886,19.28001508,3063.6,3063.0,1.62212239]
[1642580496887,7.3,3063.5,3063.0,1.62212239]
[1642580497081,7.3,3063.5,3062.9,1.62395179]
[1642580497082,0.81657,3063.2,3062.9,1.62395179]
[1642580497282,19.11772631,3063.1,3062.9,1.62395179]
[1642580497484,19.11772631,3063.1,3062.9,0.0018294]
[1642580497681,19.11772631,3063.1,3062.5,2.82452239]
[1642580497682,7.3,3063.0,3062.5,2.82452239]
[1642580497882,20.75116631,3062.9,3062.5,1.62212239]
[1642580498082,22.38458631,3062.9,3062.6,0.00284212]
[1642580498330,19.11772631,3062.8,3062.6,0.00284212]
[1642580498526,19.93444631,3062.8,3062.3,0.00454739]
[1642580498730,0.81672,3062.8,3062.3,0.00454739]
[1642580498931,1.33484,3062.8,3062.3,0.00454739]
[1642580499129,1.36708449,3062.8,3062.3,0.00454739]
[1642580499930,2.48294951,3062.6,3062.3,0.00454739]
[1642580500129,3.29958951,3062.6,3062.3,0.00454739]
[1642580500333,1.66801387,3062.6,3062.3,0.00454739]
[1642580500632,1.66615308,3062.6,3062.3,0.00454739]
[1642580501036,6.43917351,3062.5,3062.3,0.00454739]
[1642580501233,21.38688793,3062.4,3062.3,0.00454739]
[1642580501633,23.02045793,3062.4,3062.3,0.00454739]
[1642580502493,7.3,3062.3,3062.2,0.0018294]
[1642580502692,26.891,3062.3,3062.2,0.007312]
[1642580502891,27.191,3062.3,3062.2,0.036689]
[1642580503091,27.491,3062.3,3062.2,0.036689]
[1642580503293,19.93693,3062.1,3061.8,0.001828]
[1642580503502,19.93693,3062.0,3061.9,0.0018409]
[1642580503695,19.93693,3062.0,3061.9,0.00411459]
[1642580503995,20.4611527,3062.0,3061.9,0.00411459]
[1642580504395,1.3411527,3062.0,3061.9,0.00411459]
[1642580504999,4.93859814,3062.1,3061.9,0.00411459]
[1642580505000,0.81693,3062.1,3061.9,0.00411459]
[1642580505200,0.85104218,3062.1,3061.9,0.00411459]
[1642580505398,0.81693,3062.1,3062.0,0.00170527]
[1642580505600,0.84928594,3062.1,3062.0,0.00170527]
[1642580505828,1.14928594,3062.1,3062.0,0.00170527]
[1642580506037,1.11693,3062.1,3062.0,0.00170527]
[1642580506234,1.14866403,3062.1,3062.0,0.00170527]
[1642580506932,0.3,3062.3,3062.0,0.00170527]
[1642580507333,0.3,3062.3,3062.2,1.49060239]
[1642580507539,5.36478,3062.7,3062.0,0.00170527]
[1642580507540,0.84896083,3062.8,3062.3,0.13166943]
[1642580507733,2.48182367,3062.9,3062.1,0.07204807]
[1642580507931,0.00113685,3062.5,3062.1,0.07204807]
[1642580508333,0.00113685,3062.5,3062.1,1.91695553]
[1642580508538,0.00113685,3062.5,3062.0,1.62382766]
[1642580508539,0.81769685,3062.5,3062.0,1.62382766]
[1642580508933,1.11769685,3062.5,3062.1,0.00113685]
[1642580509133,0.51939685,3062.5,3062.1,0.00113685]
[1642580509571,0.51939685,3062.5,3062.0,1.62382766]
[1642580509872,1.33604685,3062.5,3062.1,1.86049403]
[1642580510272,0.51939685,3062.5,3062.1,1.86049403]
[1642580510472,0.51939685,3062.5,3062.4,3.78297952]
[1642580510674,0.00113685,3062.5,3062.4,3.78297952]
[1642580510877,0.00113685,3062.5,3062.4,5.76056033]
[1642580511084,1.63303,3063.3,3062.4,5.76056033]
[1642580511085,0.03055413,3063.6,3062.5,0.0022737]
[1642580511279,19.12,3063.7,3062.9,1.15848687]
[1642580511478,19.72,3063.7,3062.5,2.0022737]
[1642580511676,1.63275,3063.6,3062.6,0.0036689]
[1642580511879,0.81649,3063.1,3062.6,2.77899955]
[1642580512081,1.633,3063.1,3062.7,2.77533065]
[1642580512277,1.633,3063.1,3062.8,2.77533065]
[1642580512477,1.633,3063.1,3062.9,2.77533065]
[1642580512679,1.633,3063.1,3063.0,2.77533065]
[1642580513078,1.93641054,3063.1,3062.6,2.77899955]
[1642580513333,2.49236938,3063.1,3062.6,2.77899955]
[1642580513630,0.81941211,3063.0,3062.6,2.77899955]
[1642580513826,1.63315,3062.9,3062.6,2.77899955]
[1642580514027,1.63542369,3062.9,3062.6,2.77899955]
[1642580514227,1.33975527,3062.9,3062.6,2.77899955]
[1642580514527,0.81658,3062.8,3062.6,2.77899955]
[1642580516433,1.11658,3062.8,3062.6,2.77899955]
[1642580516834,0.3,3062.8,3062.6,2.77899955]
[1642580517276,1.148959,3062.9,3062.6,2.77899955]
[1642580517474,1.6706283,3062.8,3062.6,2.77899955]
[1642580518276,0.8166,3062.7,3062.6,2.77899955]
[1642580518476,20.2366,3062.7,3062.6,2.77899955]
[1642580518677,20.2366,3062.7,3062.6,2.7801364]
[1642580519279,19.9448,3062.7,3062.6,2.7801364]
[1642580519479,19.9366,3062.7,3062.6,2.7801364]
[1642580519879,0.8166,3062.7,3062.6,2.7801364]
[1642580521535,1.4166,3062.7,3062.6,2.7801364]
[1642580521733,20.5366,3062.7,3062.6,0.00480575]
[1642580522232,20.5366,3062.7,3062.6,2.78080116]
[1642580522637,1.4166,3062.7,3062.6,2.78080116]
[1642580522831,1.1166,3062.7,3062.6,2.78080116]
[1642580523034,1.4166,3062.7,3062.6,2.78080116]
[1642580523235,20.5366,3062.7,3062.6,2.78080116]
[1642580523436,1.4166,3062.7,3062.6,2.78080116]
[1642580523639,1.4166,3062.7,3062.6,2.79914566]
[1642580523841,1.4166,3062.7,3062.6,2.80097366]
[1642580524237,20.5366,3062.7,3062.6,2.80097366]
[1642580524438,20.2366,3062.7,3062.6,2.80097366]
[1642580525080,1.1166,3062.7,3062.6,2.80097366]
[1642580525878,20.2366,3062.7,3062.6,2.80097366]
[1642580526081,20.2366,3062.7,3062.6,0.02497825]
[1642580526283,20.5366,3062.7,3062.6,0.02497825]
[1642580527490,20.5366,3062.7,3062.6,0.010968]
[1642580527687,0.8168446,3062.6,3062.5,0.0022737]
[1642580527887,28.00532134,3062.6,3062.5,0.0022737]
[1642580529551,27.70912134,3062.6,3062.5,0.0022737]
[1642580529754,19.12,3062.4,3062.0,2.77609867]
[1642580529951,1.63364,3062.3,3062.1,2.77609867]
[1642580530152,20.75364,3062.3,3062.2,2.77609867]
[1642580530350,20.75364,3062.3,3062.1,0.00284212]
[1642580530750,21.05364,3062.3,3062.1,0.00284212]
[1642580531555,21.8704425,3062.3,3062.1,0.00284212]
[1642580531754,19.12,3062.2,3062.1,0.00284212]
[1642580532585,2.78306832,3062.3,3062.1,0.00284212]
[1642580532988,19.42,3062.2,3062.1,0.00284212]
[1642580533185,20.42,3062.2,3062.1,0.00284212]
[1642580534592,20.1289,3062.2,3062.1,0.00284212]
[1642580534786,20.12,3062.2,3062.1,0.00284212]
[1642580536234,20.42,3062.2,3062.1,0.00284212]
[1642580536634,1.6337157,3062.1,3061.8,0.001828]
[1642580536835,2.48456072,3062.1,3061.8,0.001828]
[1642580537034,0.3,3062.0,3061.9,0.00113684]
[1642580537238,19.42,3062.0,3061.9,0.00113684]
[1642580538637,0.3,3062.0,3061.9,0.00113684]
[1642580539587,19.12,3062.1,3061.9,0.00113684]
[1642580539789,18.8203,3062.1,3061.9,0.00113684]
[1642580539989,1.0,3062.0,3061.9,0.00113684]
[1642580540185,19.8203,3062.0,3061.9,0.00113684]
[1642580540386,21.23709,3062.0,3061.9,0.00113684]
[1642580541389,1.11679,3062.0,3061.9,0.00113684]
[1642580541588,2.41679,3062.0,3061.9,0.00113684]
[1642580541988,21.53679,3062.0,3061.9,0.00113684]
[1642580542391,2.41679,3062.0,3061.9,0.00113684]
[1642580544756,21.24599,3062.0,3061.9,0.00113684]
[1642580544962,21.23679,3062.0,3061.9,0.00113684]
[1642580546260,21.53679,3062.0,3061.9,0.00113684]
[1642580546859,58.79671387,3062.0,3061.9,0.00113684]
[1642580549084,39.67671387,3062.0,3061.9,0.00113684]
[1642580549885,58.49671387,3062.0,3061.9,0.00113684]
[1642580551161,58.79671387,3062.0,3061.9,0.00113684]
[1642580551760,58.49671387,3062.0,3061.9,0.00113684]
[1642580552265,58.79671387,3062.0,3061.9,0.00113684]
[1642580554892,58.49671387,3062.0,3061.9,0.00113684]
[1642580557994,21.23679,3062.0,3061.9,0.00113684]
[1642580558844,2.11679,3062.0,3061.9,2.77752018]
[1642580559245,2.11679,3062.0,3061.9,0.00113684]
[1642580559646,2.41679,3062.0,3061.9,0.00113684]
[1642580560048,21.23659,3062.0,3061.9,0.00113684]
[1642580560847,2.11659,3062.0,3061.9,0.00113684]
[1642580562800,21.53659,3062.0,3061.9,0.00113684]
[1642580563298,2.41659,3062.0,3061.9,0.00113684]
[1642580563499,54.095771,3062.0,3061.9,0.00113684]
[1642580563700,2.41659,3062.0,3061.9,0.00113684]
[1642580563900,21.53659,3062.0,3061.9,0.00113684]
[1642580564302,21.49659,3062.0,3061.9,0.00113684]
[1642580565105,21.20359,3062.0,3061.9,0.00113684]
[1642580565304,2.08359,3062.0,3061.9,0.00113684]
[1642580566144,2.38359,3062.0,3061.9,0.00113684]
[1642580566544,2.08359,3062.0,3061.9,0.00113684]
[1642580566747,0.81679,3062.0,3061.9,0.00113684]
[1642580566944,0.81679,3062.0,3061.8,0.001828]
[1642580567545,0.81679,3062.0,3061.8,2.77838294]
[1642580567748,0.81679,3062.0,3061.9,2.77655494]
[1642580567948,20.23679,3062.0,3061.8,0.001828]
[1642580568149,16.34344506,3061.9,3061.8,0.001828]
[1642580568355,0.3,3061.9,3061.8,0.001828]
[1642580568551,0.3,3061.9,3061.8,0.00353327]
[1642580568552,1.0,3061.9,3061.8,0.00353327]
[1642580568750,2.97006463,3062.0,3061.8,0.00353327]
[1642580568951,1.0,3061.9,3061.8,0.00353327]
[1642580569151,0.3,3061.9,3061.8,0.001828]
[1642580569451,1.0,3061.9,3061.8,0.001828]
[1642580569702,2.97006463,3062.0,3061.8,0.001828]
[1642580570101,2.97006463,3062.0,3061.9,0.00113684]
[1642580570304,2.66966463,3062.0,3061.9,0.00113684]
[1642580573009,2.96966463,3062.0,3061.9,0.00113684]
[1642580574654,2.66966463,3062.0,3061.9,0.00113684]
[1642580575253,2.96966463,3062.0,3061.9,0.00113684]
[1642580575554,7.6,3061.9,3061.8,0.001828]
[1642580575753,33.252,3061.9,3061.8,0.001828]
[1642580575957,7.3,3061.8,3061.4,0.0018294]
[1642580576159,19.12,3061.6,3061.4,0.0018294]
[1642580576355,19.12,3061.6,3061.5,0.0022737]
[1642580576356,19.42,3061.6,3061.5,0.0022737]
[1642580576554,7.3,3061.5,3060.7,0.0018294]
[1642580576754,2.9,3061.2,3060.7,0.0018294]
[1642580576954,3.671,3061.2,3060.7,0.0018294]
[1642580577200,3.971,3061.2,3060.7,0.0018294]
[1642580577403,4.78819,3061.2,3060.7,0.0018294]
[1642580578305,1.88819,3061.2,3060.7,0.0018294]
[1642580578508,1.58819,3061.2,3060.7,0.0018294]
[1642580578706,4.93416762,3061.3,3060.7,0.0018294]
[1642580578707,0.03090222,3061.3,3060.7,0.0018294]
[1642580578905,0.85454627,3061.4,3060.8,1.62212239]
[1642580579105,3.33370635,3061.5,3061.2,0.00170527]
[1642580579404,3.3037,3061.5,3061.2,0.00170527]
[1642580580006,0.81695,3061.4,3061.2,0.00170527]
[1642580580212,6.5326,3061.6,3061.2,0.00170527]
[1642580580408,6.2416,3061.6,3061.2,0.00170527]
[1642580580605,6.2416,3061.6,3061.3,1.41962731]
[1642580580865,6.2416,3061.6,3061.3,1.42807744]
[1642580581252,6.2416,3061.6,3061.3,3.30319531]
[1642580581653,6.2416,3061.6,3061.3,3.05019983]
[1642580582255,6.2416,3061.6,3061.3,1.63057252]
[1642580582456,6.2416,3061.6,3061.3,0.00845013]
[1642580582758,6.5416,3061.6,3061.3,0.00845013]
[1642580582955,7.35849,3061.6,3061.3,0.00845013]
[1642580583355,8.17539,3061.6,3061.3,0.00845013]
[1642580585398,7.88519,3061.6,3061.3,0.00845013]
[1642580585598,7.87539,3061.6,3061.3,0.00845013]
[1642580586105,7.0585,3061.6,3061.3,0.00845013]
[1642580586304,6.2416,3061.6,3061.5,6.76284459]
[1642580586506,5.3491,3061.6,3061.5,8.76284459]
[1642580586705,0.0642021,3062.0,3061.6,7.3]
[1642580586906,0.0642021,3062.0,3061.7,0.11250417]
[1642580587108,0.0642021,3062.0,3061.8,1.21001279]
[1642580587305,0.0642021,3062.0,3061.9,9.41266064]
[1642580587505,0.066035,3062.7,3062.0,7.3]
[1642580587706,0.066035,3062.7,3062.0,9.3]
[1642580587907,0.046035,3062.7,3062.1,1.62212239]
[1642580588108,0.2306,3063.2,3062.3,7.3]
[1642580588369,0.2306,3063.2,3062.5,0.06132046]
[1642580588557,0.00795793,3062.9,3062.7,1.18552903]
[1642580588762,0.0036689,3063.7,3062.8,9.62610749]
[1642580588959,0.0036689,3063.7,3063.2,0.0128729]
[1642580589158,0.0036689,3063.7,3063.3,2.77610749]
[1642580589858,0.0036689,3063.7,3063.4,2.77610749]
[1642580590057,0.0036689,3063.7,3063.5,3.89757111]
[1642580590257,0.0036689,3063.7,3063.6,7.22610749]
[1642580590460,0.57033464,3064.8,3063.7,3.65]
[1642580590662,0.0017863,3064.4,3063.1,2.4481241]
[1642580590961,0.00795793,3064.3,3063.5,0.00895943]
[1642580591162,2.32676074,3064.0,3063.5,0.00895943]
[1642580591660,1.63853304,3063.9,3063.5,0.00895943]
[1642580591859,1.11641,3063.8,3063.5,0.00895943]
[1642580592092,1.12152581,3063.8,3063.5,0.00895943]
[1642580592292,0.00454739,3063.7,3063.5,0.00895943]
[1642580592492,0.82096739,3063.7,3063.5,0.00895943]
[1642580592692,0.00397896,3063.6,3063.5,0.00895943]
[1642580592893,0.30397896,3063.6,3063.5,0.00895943]